[Event "Early-Titled-Tuesday-Blitz-January-16-2024"]
[Site "Chess.com"]
[Date "2024.01.16"]
[Round "6"]
[White "Mikhail_Golubev"]
[Black "IngOscarArdila"]
[Result "1/2-1/2"]
[WhiteElo "2523"]
[BlackElo "2373"]
[TimeControl "180+1"]
[EndTime "9:11:35 PST"]
[Termination "Game drawn - insufficient material"]

1. e4 {[%clk 0:03:00.9]} 1... e5 {[%clk 0:02:59.9]} 2. Nf3 {[%clk 0:03:00.8]}
2... Nf6 {[%clk 0:03:00.2]} 3. Nc3 {[%clk 0:03:00.4]} 3... Nc6 {[%clk
0:02:59.9]} 4. g3 {[%clk 0:03:00.2]} 4... Bb4 {[%clk 0:02:59.8]} 5. Bg2 {[%clk
0:02:59.3]} 5... d6 {[%clk 0:03:00.1]} 6. d3 {[%clk 0:02:57.5]} 6... h6 {[%clk
0:02:59.1]} 7. O-O {[%clk 0:02:55.4]} 7... Be6 {[%clk 0:02:59.2]} 8. Re1 {[%clk
0:02:50.9]} 8... a6 {[%clk 0:02:58.5]} 9. Bd2 {[%clk 0:02:44.6]} 9... Qd7 {[%clk
0:02:58.3]} 10. a3 {[%clk 0:02:43.9]} 10... Ba5 {[%clk 0:02:57.5]} 11. b4 {[%clk
0:02:30.4]} 11... Bb6 {[%clk 0:02:57.3]} 12. Be3 {[%clk 0:02:30.6]} 12... Bxe3
{[%clk 0:02:07.6]} 13. Rxe3 {[%clk 0:02:31.5]} 13... O-O {[%clk 0:02:07.2]} 14.
d4 {[%clk 0:02:24.4]} 14... exd4 {[%clk 0:02:06]} 15. Nxd4 {[%clk 0:02:24.9]}
15... Nxd4 {[%clk 0:02:06.2]} 16. Qxd4 {[%clk 0:02:24.8]} 16... Ng4 {[%clk
0:02:05]} 17. Ree1 {[%clk 0:02:22.6]} 17... Ne5 {[%clk 0:02:05]} 18. f4 {[%clk
0:02:20.1]} 18... Nc6 {[%clk 0:02:05.2]} 19. Qd2 {[%clk 0:02:15.3]} 19... Bh3
{[%clk 0:02:04.4]} 20. Bf3 {[%clk 0:02:02.8]} 20... Bg4 {[%clk 0:02:03]} 21. Bg2
{[%clk 0:01:55.7]} 21... Bh3 {[%clk 0:02:02.7]} 22. Bh1 {[%clk 0:01:55.8]} 22...
Rfe8 {[%clk 0:02:02.3]} 23. Nd5 {[%clk 0:01:52]} 23... Ne7 {[%clk 0:01:57.8]}
24. Ne3 {[%clk 0:01:45.8]} 24... Rad8 {[%clk 0:01:47.6]} 25. c4 {[%clk
0:01:42.8]} 25... b5 {[%clk 0:01:39.3]} 26. Rac1 {[%clk 0:01:30.8]} 26... bxc4
{[%clk 0:01:36.7]} 27. Rxc4 {[%clk 0:01:29.9]} 27... c5 {[%clk 0:01:28.1]} 28.
bxc5 {[%clk 0:01:19.6]} 28... dxc5 {[%clk 0:01:28.4]} 29. Qxd7 {[%clk
0:01:19.6]} 29... Rxd7 {[%clk 0:01:29.3]} 30. Rxc5 {[%clk 0:01:20]} 30... Rd2
{[%clk 0:01:16]} 31. e5 {[%clk 0:01:05]} 31... Rb8 {[%clk 0:01:09.8]} 32. Rc2
{[%clk 0:00:59.4]} 32... Rd3 {[%clk 0:01:05.1]} 33. Nc4 {[%clk 0:00:54]} 33...
Nf5 {[%clk 0:00:57.8]} 34. Be4 {[%clk 0:00:51.8]} 34... Rd4 {[%clk 0:00:50.1]}
35. Bg2 {[%clk 0:00:37]} 35... Bxg2 {[%clk 0:00:37.7]} 36. Kxg2 {[%clk
0:00:37.9]} 36... Rb3 {[%clk 0:00:36.8]} 37. Rec1 {[%clk 0:00:27.6]} 37... Rxc4
{[%clk 0:00:33.2]} 38. Rxc4 {[%clk 0:00:26.6]} 38... Ne3+ {[%clk 0:00:33.8]} 39.
Kh3 {[%clk 0:00:25.2]} 39... Nxc4 {[%clk 0:00:33.7]} 40. Rxc4 {[%clk 0:00:25.8]}
40... Rxa3 {[%clk 0:00:34.6]} 41. Kg4 {[%clk 0:00:25.3]} 41... Ra2 {[%clk
0:00:32.6]} 42. h4 {[%clk 0:00:24.6]} 42... a5 {[%clk 0:00:33.1]} 43. h5 {[%clk
0:00:22.8]} 43... g6 {[%clk 0:00:31.6]} 44. hxg6 {[%clk 0:00:21.1]} 44... fxg6
{[%clk 0:00:31.9]} 45. Rc7 {[%clk 0:00:21]} 45... a4 {[%clk 0:00:31.6]} 46. f5
{[%clk 0:00:19.8]} 46... gxf5+ {[%clk 0:00:28.8]} 47. Kxf5 {[%clk 0:00:19.9]}
47... Kf8 {[%clk 0:00:19.8]} 48. Ra7 {[%clk 0:00:15.8]} 48... a3 {[%clk
0:00:16.4]} 49. Ke6 {[%clk 0:00:14.9]} 49... h5 {[%clk 0:00:13]} 50. Kf6 {[%clk
0:00:12.2]} 50... Rf2+ {[%clk 0:00:11.2]} 51. Kg6 {[%clk 0:00:12.1]} 51... Rf3
{[%clk 0:00:11.3]} 52. Kxh5 {[%clk 0:00:06.7]} 52... Rxg3 {[%clk 0:00:11.5]} 53.
e6 {[%clk 0:00:07.1]} 53... Ke8 {[%clk 0:00:10.7]} 54. e7 {[%clk 0:00:07.2]}
54... Rg1 {[%clk 0:00:07.9]} 55. Kh4 {[%clk 0:00:07.3]} 55... Rg6 {[%clk
0:00:07.2]} 56. Kh3 {[%clk 0:00:07]} 56... Rg7 {[%clk 0:00:06.7]} 57. Rxa3
{[%clk 0:00:06.5]} 57... Kxe7 {[%clk 0:00:05.4]} 58. Ra7+ {[%clk 0:00:06.3]}
58... Kf8 {[%clk 0:00:05.6]} 59. Rxg7 {[%clk 0:00:06.6]} 59... Kxg7 {[%clk
0:00:05.8]} 1/2-1/2

[Event "Early-Titled-Tuesday-Blitz-January-16-2024"]
[Site "Chess.com"]
[Date "2024.01.16"]
[Round "6"]
[White "doctorcristian"]
[Black "CSB7"]
[Result "0-1"]
[WhiteElo "2555"]
[BlackElo "2698"]
[TimeControl "180+1"]
[EndTime "9:11:36 PST"]
[Termination "CSB7 won by resignation"]

1. d4 {[%clk 0:02:59.8]} 1... Nf6 {[%clk 0:02:59.7]} 2. Nc3 {[%clk 0:03:00.1]}
2... e6 {[%clk 0:02:57.5]} 3. Bf4 {[%clk 0:03:00.5]} 3... Bb4 {[%clk 0:02:55.6]}
4. e3 {[%clk 0:02:59.6]} 4... Nd5 {[%clk 0:02:44.2]} 5. Ne2 {[%clk 0:02:58.8]}
5... b6 {[%clk 0:02:42.5]} 6. a3 {[%clk 0:02:55.7]} 6... Bxc3+ {[%clk
0:02:38.6]} 7. Nxc3 {[%clk 0:02:55.7]} 7... Nxf4 {[%clk 0:02:37.6]} 8. exf4
{[%clk 0:02:55.7]} 8... Bb7 {[%clk 0:02:37.7]} 9. Qg4 {[%clk 0:02:54.9]} 9...
Qf6 {[%clk 0:02:19.5]} 10. O-O-O {[%clk 0:02:53.7]} 10... h5 {[%clk 0:02:17.4]}
11. Qg5 {[%clk 0:02:39.7]} 11... Qxg5 {[%clk 0:02:12]} 12. fxg5 {[%clk 0:02:38]}
12... Nc6 {[%clk 0:01:45.9]} 13. h4 {[%clk 0:02:27.9]} 13... O-O-O {[%clk
0:01:41.7]} 14. Rh2 {[%clk 0:02:00.6]} 14... Ne7 {[%clk 0:01:35.5]} 15. g3
{[%clk 0:02:00]} 15... a5 {[%clk 0:01:20.3]} 16. Bh3 {[%clk 0:01:54.8]} 16...
Nf5 {[%clk 0:01:09.1]} 17. Bxf5 {[%clk 0:01:54.1]} 17... exf5 {[%clk 0:01:08.7]}
18. Ne2 {[%clk 0:01:35.8]} 18... Bf3 {[%clk 0:01:00.6]} 19. Rd2 {[%clk
0:01:34.6]} 19... Rde8 {[%clk 0:00:58.6]} 20. Nc3 {[%clk 0:01:26.1]} 20... Re1+
{[%clk 0:00:56.6]} 21. Nd1 {[%clk 0:01:26.7]} 21... Rhe8 {[%clk 0:00:45.7]} 22.
c4 {[%clk 0:01:16.6]} 22... R8e2 {[%clk 0:00:34.3]} 23. Rxe2 {[%clk 0:01:16.8]}
23... Bxe2 {[%clk 0:00:34.5]} 24. Kd2 {[%clk 0:01:17.2]} 24... Rxd1+ {[%clk
0:00:35.1]} 25. Kxe2 {[%clk 0:01:17.5]} 25... Rb1 {[%clk 0:00:35.8]} 26. Ke3
{[%clk 0:01:11]} 26... Rxb2 {[%clk 0:00:26.7]} 27. Kf4 {[%clk 0:01:11.4]} 27...
Rb3 {[%clk 0:00:25.6]} 28. a4 {[%clk 0:01:01.8]} 28... Rb4 {[%clk 0:00:18.1]}
29. Ke5 {[%clk 0:01:02.1]} 29... Rxa4 {[%clk 0:00:14.1]} 30. f3 {[%clk 0:00:58]}
30... Rxc4 {[%clk 0:00:13.8]} 31. g4 {[%clk 0:00:58.4]} 31... fxg4 {[%clk
0:00:09.4]} 32. fxg4 {[%clk 0:00:58.8]} 32... hxg4 {[%clk 0:00:10.3]} 33. h5
{[%clk 0:00:59.4]} 33... g3 {[%clk 0:00:09.5]} 34. Rg2 {[%clk 0:00:58.3]} 34...
Rc1 {[%clk 0:00:09.8]} 35. g6 {[%clk 0:00:49.4]} 35... fxg6 {[%clk 0:00:09.6]}
36. hxg6 {[%clk 0:00:49.2]} 36... Rc6 {[%clk 0:00:10.1]} 37. Rxg3 {[%clk
0:00:48.8]} 37... Rf6 {[%clk 0:00:10.4]} 38. d5 {[%clk 0:00:47.4]} 38... Kb7
{[%clk 0:00:10.5]} 39. Rg4 {[%clk 0:00:45.7]} 39... b5 {[%clk 0:00:10.2]} 40.
Kd4 {[%clk 0:00:45.7]} 40... Kb6 {[%clk 0:00:10.3]} 41. Rg1 {[%clk 0:00:37.7]}
41... b4 {[%clk 0:00:08.1]} 42. Kc4 {[%clk 0:00:37]} 42... Rf4+ {[%clk
0:00:07.6]} 43. Kd3 {[%clk 0:00:37]} 43... c6 {[%clk 0:00:06.5]} 44. Re1 {[%clk
0:00:34.2]} 44... Rf6 {[%clk 0:00:06]} 45. Re7 {[%clk 0:00:33.2]} 45... Rxg6
{[%clk 0:00:06.3]} 46. Rxd7 {[%clk 0:00:33.6]} 46... Rg3+ {[%clk 0:00:04.4]} 47.
Kd4 {[%clk 0:00:32.4]} 47... Rg4+ {[%clk 0:00:04.7]} 48. Kd3 {[%clk 0:00:32.6]}
48... Kc5 {[%clk 0:00:02.3]} 49. dxc6 {[%clk 0:00:28.6]} 49... Kxc6 {[%clk
0:00:03.2]} 50. Ra7 {[%clk 0:00:29.3]} 50... Kb5 {[%clk 0:00:03.2]} 51. Rb7+
{[%clk 0:00:29.1]} 51... Ka4 {[%clk 0:00:03.4]} 52. Kc2 {[%clk 0:00:29.7]} 52...
Ka3 {[%clk 0:00:02.8]} 53. Rb5 {[%clk 0:00:29.3]} 53... a4 {[%clk 0:00:02.7]}
54. Kc1 {[%clk 0:00:29.2]} 54... Rg1+ {[%clk 0:00:02.9]} 55. Kd2 {[%clk
0:00:29.2]} 55... b3 {[%clk 0:00:03]} 56. Rb7 {[%clk 0:00:28.5]} 56... Rg2+
{[%clk 0:00:03.5]} 57. Kc1 {[%clk 0:00:28.4]} 57... g5 {[%clk 0:00:04.3]} 58.
Rb5 {[%clk 0:00:27.8]} 58... Ka2 {[%clk 0:00:04]} 59. Rb4 {[%clk 0:00:26.4]}
59... b2+ {[%clk 0:00:04.2]} 60. Kd1 {[%clk 0:00:27]} 60... b1=Q+ {[%clk
0:00:04.6]} 61. Rxb1 {[%clk 0:00:27.1]} 61... Kxb1 {[%clk 0:00:05.5]} 62. Ke1
{[%clk 0:00:28]} 62... Rb2 {[%clk 0:00:05.6]} 63. Kd1 {[%clk 0:00:28.3]} 63...
a3 {[%clk 0:00:06.5]} 64. Ke1 {[%clk 0:00:28]} 64... a2 {[%clk 0:00:07.2]} 0-1

[Event "Early-Titled-Tuesday-Blitz-January-16-2024"]
[Site "Chess.com"]
[Date "2024.01.16"]
[Round "6"]
[White "evgchess5"]
[Black "GMRAVEN_ON_YOUTUBE"]
[Result "1-0"]
[WhiteElo "2979"]
[BlackElo "2819"]
[TimeControl "180+1"]
[EndTime "9:11:38 PST"]
[Termination "evgchess5 won on time"]

1. e4 {[%clk 0:02:59.5]} 1... c5 {[%clk 0:02:59.6]} 2. Nf3 {[%clk 0:02:58.6]}
2... e6 {[%clk 0:03:00.2]} 3. d4 {[%clk 0:02:57.9]} 3... cxd4 {[%clk 0:03:01.1]}
4. Nxd4 {[%clk 0:02:57.9]} 4... Nc6 {[%clk 0:03:01.9]} 5. Nc3 {[%clk 0:02:57.2]}
5... Qc7 {[%clk 0:03:02.4]} 6. Be3 {[%clk 0:02:50.9]} 6... a6 {[%clk 0:03:02.3]}
7. g4 {[%clk 0:02:49.9]} 7... Nge7 {[%clk 0:02:59.6]} 8. Nb3 {[%clk 0:02:45.1]}
8... Ng6 {[%clk 0:02:57.2]} 9. h4 {[%clk 0:02:38.6]} 9... Bb4 {[%clk 0:02:51.8]}
10. h5 {[%clk 0:02:33.7]} 10... Bxc3+ {[%clk 0:02:33.9]} 11. bxc3 {[%clk
0:02:32.7]} 11... Nf4 {[%clk 0:02:34.8]} 12. Qd2 {[%clk 0:02:22.6]} 12... e5
{[%clk 0:02:30.8]} 13. Bc5 {[%clk 0:02:18.4]} 13... d6 {[%clk 0:02:24.1]} 14.
Bxd6 {[%clk 0:02:12.5]} 14... Qd8 {[%clk 0:02:24.5]} 15. f3 {[%clk 0:02:07.5]}
15... Be6 {[%clk 0:02:23.3]} 16. O-O-O {[%clk 0:02:03.8]} 16... Qf6 {[%clk
0:02:21.4]} 17. Qe3 {[%clk 0:01:57.8]} 17... Rd8 {[%clk 0:02:16.2]} 18. Ba3
{[%clk 0:01:36.7]} 18... Rxd1+ {[%clk 0:02:01.3]} 19. Kxd1 {[%clk 0:01:36.7]}
19... Qd8+ {[%clk 0:01:57.3]} 20. Kc1 {[%clk 0:01:36.4]} 20... f6 {[%clk
0:01:56.7]} 21. Be2 {[%clk 0:01:04.5]} 21... Kf7 {[%clk 0:01:54.6]} 22. Rd1
{[%clk 0:01:03]} 22... Qc8 {[%clk 0:01:50.1]} 23. Bf1 {[%clk 0:01:01.6]} 23...
Rd8 {[%clk 0:01:47.7]} 24. Rxd8 {[%clk 0:00:58.3]} 24... Qxd8 {[%clk 0:01:48.6]}
25. Qc5 {[%clk 0:00:57.7]} 25... Nb8 {[%clk 0:01:18.5]} 26. Qa7 {[%clk
0:00:41.3]} 26... Qc7 {[%clk 0:01:05.7]} 27. Qc5 {[%clk 0:00:34.6]} 27... Qd8
{[%clk 0:01:04.3]} 28. Qd6 {[%clk 0:00:32.8]} 28... Nd7 {[%clk 0:01:00.1]} 29.
Nc5 {[%clk 0:00:24.8]} 29... Qb6 {[%clk 0:00:25.1]} 30. Nxe6 {[%clk 0:00:13.3]}
30... Qxd6 {[%clk 0:00:25.1]} 31. Nd8+ {[%clk 0:00:13.1]} 31... Ke8 {[%clk
0:00:24.8]} 32. Bxd6 {[%clk 0:00:13]} 32... Kxd8 {[%clk 0:00:25.4]} 33. Bc4
{[%clk 0:00:12.8]} 33... Ke8 {[%clk 0:00:22.8]} 34. Kd2 {[%clk 0:00:11.7]} 34...
Nb6 {[%clk 0:00:22]} 35. Bg8 {[%clk 0:00:11.4]} 35... h6 {[%clk 0:00:20.7]} 36.
c4 {[%clk 0:00:11.5]} 36... Kd7 {[%clk 0:00:18.4]} 37. Bf8 {[%clk 0:00:10.3]}
37... Ne6 {[%clk 0:00:18.3]} 38. Bxe6+ {[%clk 0:00:10.2]} 38... Kxe6 {[%clk
0:00:19.2]} 39. Bxg7 {[%clk 0:00:10.3]} 39... Nxc4+ {[%clk 0:00:19.6]} 40. Ke2
{[%clk 0:00:10.4]} 40... Na3 {[%clk 0:00:19.2]} 41. Kd3 {[%clk 0:00:10.3]} 41...
Nb5 {[%clk 0:00:17.9]} 42. Bxh6 {[%clk 0:00:10.3]} 42... Nd4 {[%clk 0:00:18.5]}
43. f4 {[%clk 0:00:08.1]} 43... Nf3 {[%clk 0:00:19.1]} 44. f5+ {[%clk
0:00:07.6]} 44... Kf7 {[%clk 0:00:18.2]} 45. Be3 {[%clk 0:00:08.1]} 45... Nh2
{[%clk 0:00:18.2]} 46. g5 {[%clk 0:00:08.2]} 46... Ng4 {[%clk 0:00:16.6]} 47.
g6+ {[%clk 0:00:07.3]} 47... Ke7 {[%clk 0:00:15.6]} 48. h6 {[%clk 0:00:06.5]}
48... Kf8 {[%clk 0:00:15.6]} 49. h7 {[%clk 0:00:05.6]} 49... Kg7 {[%clk
0:00:16.1]} 50. Ke2 {[%clk 0:00:05.6]} 50... b5 {[%clk 0:00:09.9]} 51. Kf3
{[%clk 0:00:05.7]} 51... Nh2+ {[%clk 0:00:10.1]} 52. Kg2 {[%clk 0:00:06.1]}
52... Ng4 {[%clk 0:00:10.3]} 53. Bd2 {[%clk 0:00:06.7]} 53... b4 {[%clk
0:00:05.9]} 54. Kg3 {[%clk 0:00:07.1]} 54... Nh6 {[%clk 0:00:06]} 55. Bxh6+
{[%clk 0:00:06]} 55... Kh8 {[%clk 0:00:06.9]} 56. Be3 {[%clk 0:00:05.1]} 56...
a5 {[%clk 0:00:07]} 57. Bc5 {[%clk 0:00:04.6]} 1-0

[Event "Early-Titled-Tuesday-Blitz-January-16-2024"]
[Site "Chess.com"]
[Date "2024.01.16"]
[Round "6"]
[White "iwanyu"]
[Black "Njal28"]
[Result "0-1"]
[WhiteElo "2683"]
[BlackElo "3018"]
[TimeControl "180+1"]
[EndTime "9:11:42 PST"]
[Termination "Njal28 won on time"]

1. d4 {[%clk 0:02:58.9]} 1... Nf6 {[%clk 0:02:59.5]} 2. c4 {[%clk 0:02:50]} 2...
c5 {[%clk 0:02:59.2]} 3. d5 {[%clk 0:02:49.8]} 3... g6 {[%clk 0:02:59.2]} 4. Nc3
{[%clk 0:02:49.2]} 4... Bg7 {[%clk 0:02:59.7]} 5. e4 {[%clk 0:02:49.9]} 5... O-O
{[%clk 0:03:00]} 6. Nf3 {[%clk 0:02:50.4]} 6... d6 {[%clk 0:03:00.5]} 7. Be2
{[%clk 0:02:50.8]} 7... e6 {[%clk 0:03:00.4]} 8. O-O {[%clk 0:02:50.5]} 8...
exd5 {[%clk 0:02:59.5]} 9. exd5 {[%clk 0:02:51.4]} 9... Bg4 {[%clk 0:02:58.2]}
10. h3 {[%clk 0:02:48.7]} 10... Bxf3 {[%clk 0:02:58]} 11. Bxf3 {[%clk
0:02:49.6]} 11... Nbd7 {[%clk 0:02:58]} 12. Bd2 {[%clk 0:02:47.7]} 12... Ne5
{[%clk 0:02:57.9]} 13. Be2 {[%clk 0:02:47.6]} 13... Re8 {[%clk 0:02:58.6]} 14.
Qc2 {[%clk 0:02:46.3]} 14... a6 {[%clk 0:02:55.7]} 15. a4 {[%clk 0:02:42.6]}
15... Qc7 {[%clk 0:02:46.3]} 16. Rae1 {[%clk 0:02:39.9]} 16... Re7 {[%clk
0:02:45.8]} 17. f4 {[%clk 0:02:31.7]} 17... Ned7 {[%clk 0:02:45.2]} 18. g4
{[%clk 0:02:32.2]} 18... Rae8 {[%clk 0:02:40.8]} 19. Bd3 {[%clk 0:02:16.7]}
19... Qd8 {[%clk 0:02:35.5]} 20. Qd1 {[%clk 0:01:53.8]} 20... Qb6 {[%clk
0:02:18.4]} 21. b3 {[%clk 0:01:41.8]} 21... Rxe1 {[%clk 0:02:13]} 22. Bxe1
{[%clk 0:01:42.7]} 22... Re3 {[%clk 0:02:00.9]} 23. Kg2 {[%clk 0:01:27.4]} 23...
Nf8 {[%clk 0:01:42.2]} 24. Bf2 {[%clk 0:01:20]} 24... Re8 {[%clk 0:01:40.9]} 25.
Qc2 {[%clk 0:01:13.7]} 25... Qa5 {[%clk 0:01:36.8]} 26. Be1 {[%clk 0:01:07.1]}
26... Qd8 {[%clk 0:01:34.6]} 27. Bd2 {[%clk 0:01:04.6]} 27... N8d7 {[%clk
0:01:21]} 28. Be2 {[%clk 0:01:03.8]} 28... Re7 {[%clk 0:01:10.8]} 29. Bf3 {[%clk
0:01:01.8]} 29... Ne8 {[%clk 0:01:10.9]} 30. Ne4 {[%clk 0:00:51.3]} 30... Ndf6
{[%clk 0:01:06.6]} 31. Ng3 {[%clk 0:00:50.1]} 31... Nd7 {[%clk 0:01:05.1]} 32.
g5 {[%clk 0:00:38.1]} 32... Bd4 {[%clk 0:01:00.4]} 33. h4 {[%clk 0:00:36.4]}
33... f5 {[%clk 0:00:45.6]} 34. h5 {[%clk 0:00:34.8]} 34... Nc7 {[%clk
0:00:38.9]} 35. Ne2 {[%clk 0:00:31.8]} 35... Bg7 {[%clk 0:00:37.6]} 36. h6
{[%clk 0:00:26.5]} 36... Bh8 {[%clk 0:00:38]} 37. Bc3 {[%clk 0:00:26.7]} 37...
Bxc3 {[%clk 0:00:37.5]} 38. Qxc3 {[%clk 0:00:27.6]} 38... Qf8 {[%clk 0:00:30]}
39. Kf2 {[%clk 0:00:23.8]} 39... b6 {[%clk 0:00:26.7]} 40. Nc1 {[%clk
0:00:23.5]} 40... a5 {[%clk 0:00:25.7]} 41. Nd3 {[%clk 0:00:21.8]} 41... Na6
{[%clk 0:00:26.3]} 42. Re1 {[%clk 0:00:21.5]} 42... Nb4 {[%clk 0:00:26.2]} 43.
Nc1 {[%clk 0:00:12.6]} 43... Rxe1 {[%clk 0:00:24.3]} 44. Kxe1 {[%clk 0:00:13.5]}
44... Qe7+ {[%clk 0:00:21.5]} 45. Kf2 {[%clk 0:00:13.8]} 45... Nb8 {[%clk
0:00:17.3]} 46. Ne2 {[%clk 0:00:13.4]} 46... N8a6 {[%clk 0:00:16.5]} 47. Qd2
{[%clk 0:00:12.9]} 47... Nc7 {[%clk 0:00:14.7]} 48. Ng3 {[%clk 0:00:12.6]} 48...
Nca6 {[%clk 0:00:10.3]} 49. Bg2 {[%clk 0:00:11.7]} 49... Nc7 {[%clk 0:00:10.5]}
50. Bh3 {[%clk 0:00:11.9]} 50... Ne8 {[%clk 0:00:10.8]} 51. Nxf5 {[%clk
0:00:07.9]} 51... gxf5 {[%clk 0:00:11.1]} 52. Bxf5 {[%clk 0:00:08.7]} 52... Nc7
{[%clk 0:00:11]} 53. Bb1 {[%clk 0:00:06.9]} 53... Qf7 {[%clk 0:00:07.8]} 54. Kg3
{[%clk 0:00:06.1]} 54... Qe7 {[%clk 0:00:06.4]} 55. Qc3 {[%clk 0:00:06.4]} 55...
Ne8 {[%clk 0:00:03.4]} 56. Bf5 {[%clk 0:00:06.3]} 56... Nc7 {[%clk 0:00:03.5]}
57. Be6+ {[%clk 0:00:05.9]} 57... Nxe6 {[%clk 0:00:04.2]} 58. dxe6 {[%clk
0:00:06.1]} 58... Nc6 {[%clk 0:00:05.1]} 59. Kg4 {[%clk 0:00:04.5]} 59... Nd4
{[%clk 0:00:05.7]} 60. f5 {[%clk 0:00:04.9]} 60... Qb7 {[%clk 0:00:04.4]} 61.
Qe3 {[%clk 0:00:03.2]} 61... Qg2+ {[%clk 0:00:04.8]} 62. Kf4 {[%clk 0:00:03.3]}
62... Ne2+ {[%clk 0:00:03.2]} 0-1

[Event "Early-Titled-Tuesday-Blitz-January-16-2024"]
[Site "Chess.com"]
[Date "2024.01.16"]
[Round "6"]
[White "Nikolakis2014"]
[Black "PolandHussars"]
[Result "0-1"]
[WhiteElo "2731"]
[BlackElo "2597"]
[TimeControl "180+1"]
[EndTime "9:11:44 PST"]
[Termination "PolandHussars won by resignation"]

1. Nf3 {[%clk 0:03:00.9]} 1... d5 {[%clk 0:02:59.4]} 2. d4 {[%clk 0:03:00.7]}
2... a6 {[%clk 0:02:55.8]} 3. g3 {[%clk 0:02:56.9]} 3... Bg4 {[%clk 0:02:49.7]}
4. Bg2 {[%clk 0:02:56.1]} 4... c6 {[%clk 0:02:41.6]} 5. O-O {[%clk 0:02:55]}
5... Nd7 {[%clk 0:02:41.8]} 6. c4 {[%clk 0:02:44.7]} 6... e6 {[%clk 0:02:26.4]}
7. Nc3 {[%clk 0:02:34.4]} 7... dxc4 {[%clk 0:02:22.3]} 8. e4 {[%clk 0:02:27.9]}
8... Ngf6 {[%clk 0:02:21.4]} 9. a4 {[%clk 0:02:17.9]} 9... Bb4 {[%clk
0:02:15.9]} 10. e5 {[%clk 0:02:17]} 10... Nd5 {[%clk 0:02:11.3]} 11. Ne4 {[%clk
0:02:17.1]} 11... O-O {[%clk 0:02:02.7]} 12. h3 {[%clk 0:02:11.8]} 12... Bf5
{[%clk 0:01:58.5]} 13. Nh4 {[%clk 0:02:09.8]} 13... Bg6 {[%clk 0:01:58.5]} 14.
Nxg6 {[%clk 0:02:08.4]} 14... hxg6 {[%clk 0:01:58.7]} 15. h4 {[%clk 0:01:58.9]}
15... c5 {[%clk 0:01:55.6]} 16. h5 {[%clk 0:01:58.2]} 16... cxd4 {[%clk
0:01:50.1]} 17. hxg6 {[%clk 0:01:57.2]} 17... Nxe5 {[%clk 0:01:37.1]} 18. gxf7+
{[%clk 0:01:49.9]} 18... Nxf7 {[%clk 0:01:35.8]} 19. Qxd4 {[%clk 0:01:46.1]}
19... Rc8 {[%clk 0:01:31.4]} 20. Bh3 {[%clk 0:01:37.1]} 20... Nf4 {[%clk
0:01:19.8]} 21. Qxd8 {[%clk 0:01:17.1]} 21... Nxh3+ {[%clk 0:01:19.8]} 22. Kg2
{[%clk 0:01:17.8]} 22... Rfxd8 {[%clk 0:01:15.5]} 23. Kxh3 {[%clk 0:01:17.8]}
23... Ne5 {[%clk 0:01:07.4]} 24. Bg5 {[%clk 0:00:54.4]} 24... Rd4 {[%clk
0:01:01.9]} 25. Nc3 {[%clk 0:00:44.3]} 25... Nd3 {[%clk 0:00:34.6]} 26. Rab1
{[%clk 0:00:43.4]} 26... a5 {[%clk 0:00:20.2]} 27. Kg2 {[%clk 0:00:42.3]} 27...
e5 {[%clk 0:00:20]} 28. Be3 {[%clk 0:00:40.3]} 28... Rd7 {[%clk 0:00:19.8]} 29.
Rfd1 {[%clk 0:00:37.9]} 29... Rcd8 {[%clk 0:00:19.5]} 30. Bg5 {[%clk 0:00:19.8]}
30... Rf8 {[%clk 0:00:19.4]} 31. Be3 {[%clk 0:00:16.5]} 31... Rfd8 {[%clk
0:00:19.3]} 32. Bg5 {[%clk 0:00:15.8]} 32... Rf8 {[%clk 0:00:19.3]} 33. Rd2
{[%clk 0:00:15.9]} 33... Be7 {[%clk 0:00:15.8]} 34. Bxe7 {[%clk 0:00:13.7]}
34... Rxe7 {[%clk 0:00:16.7]} 35. Re2 {[%clk 0:00:14.3]} 35... Ref7 {[%clk
0:00:16.7]} 36. Ne4 {[%clk 0:00:14.6]} 36... Rc7 {[%clk 0:00:15.8]} 37. b3
{[%clk 0:00:15]} 37... c3 {[%clk 0:00:14.6]} 38. Rc2 {[%clk 0:00:15.1]} 38...
Rfc8 {[%clk 0:00:14.8]} 39. Rd1 {[%clk 0:00:13.9]} 39... Nb4 {[%clk 0:00:15]}
40. Rcc1 {[%clk 0:00:14.3]} 40... c2 {[%clk 0:00:15.7]} 41. Rd2 {[%clk
0:00:14.6]} 41... Na2 {[%clk 0:00:16.2]} 42. Rcxc2 {[%clk 0:00:10.5]} 42... Rxc2
{[%clk 0:00:17.1]} 43. Rd7 {[%clk 0:00:10.8]} 43... R2c7 {[%clk 0:00:17]} 44.
Rd6 {[%clk 0:00:10.8]} 44... Nc3 {[%clk 0:00:17.2]} 45. Ng5 {[%clk 0:00:09.7]}
45... Rf8 {[%clk 0:00:16.7]} 46. Re6 {[%clk 0:00:10.1]} 46... Nd5 {[%clk
0:00:16.1]} 47. Rxe5 {[%clk 0:00:10.3]} 47... Nf6 {[%clk 0:00:16.5]} 48. Ne6
{[%clk 0:00:10.1]} 48... Re7 {[%clk 0:00:16.4]} 49. f4 {[%clk 0:00:10.5]} 49...
Ng4 {[%clk 0:00:16.3]} 50. Re2 {[%clk 0:00:09.9]} 50... Rfe8 {[%clk 0:00:16.5]}
51. f5 {[%clk 0:00:10.4]} 51... Nh6 {[%clk 0:00:17.1]} 52. Re5 {[%clk 0:00:09]}
52... Nxf5 {[%clk 0:00:17.4]} 53. Rxf5 {[%clk 0:00:09.5]} 53... Rxe6 {[%clk
0:00:18]} 54. Rxa5 {[%clk 0:00:09.3]} 54... Re2+ {[%clk 0:00:17.8]} 55. Kh3
{[%clk 0:00:10]} 55... R2e5 {[%clk 0:00:17.4]} 56. Ra7 {[%clk 0:00:10.1]} 56...
R8e7 {[%clk 0:00:18]} 57. a5 {[%clk 0:00:10.1]} 57... Kf7 {[%clk 0:00:18.5]} 58.
Ra8 {[%clk 0:00:10.3]} 58... Rb5 {[%clk 0:00:18.6]} 59. Kg4 {[%clk 0:00:10.8]}
59... Rxb3 {[%clk 0:00:18.8]} 60. a6 {[%clk 0:00:11.5]} 60... Rb4+ {[%clk
0:00:19.7]} 61. Kh3 {[%clk 0:00:11.1]} 61... bxa6 {[%clk 0:00:20.3]} 62. Rxa6
{[%clk 0:00:11.3]} 62... Rbe4 {[%clk 0:00:20.5]} 63. Rb6 {[%clk 0:00:11.2]}
63... R4e6 {[%clk 0:00:20.4]} 64. Rb5 {[%clk 0:00:11.6]} 64... Rh6+ {[%clk
0:00:20.6]} 65. Kg4 {[%clk 0:00:11.3]} 65... Rg6+ {[%clk 0:00:21.2]} 66. Kf3
{[%clk 0:00:11.6]} 66... Rf6+ {[%clk 0:00:21.7]} 67. Kg2 {[%clk 0:00:12.2]}
67... Re2+ {[%clk 0:00:21.6]} 68. Kh3 {[%clk 0:00:12.7]} 68... Re3 {[%clk
0:00:22.2]} 69. Rg5 {[%clk 0:00:11.5]} 69... Rg6 {[%clk 0:00:21.5]} 70. Rf5+
{[%clk 0:00:11.8]} 70... Ke6 {[%clk 0:00:21.7]} 0-1